bitfinex-derivatives/quotes_ETHF0:USTF0_20260204
["timestamp","ask_amount","ask_price","bid_price","bid_amount"]
[1770230664564,7.71905517,2170.5,2169.3,7.62979636]
[1770230664764,7.25805517,2170.0,2167.9,7.62979636]
[1770230664969,7.48902517,2169.4,2167.9,7.62979636]
[1770230665267,7.25805517,2169.2,2167.9,7.62979636]
[1770230665871,7.26245024,2169.2,2167.9,7.6332109]
[1770230666270,7.26245024,2169.2,2167.9,0.00341454]
[1770230666575,7.49343024,2169.2,2167.9,0.00341454]
[1770230667176,0.00439507,2169.2,2168.0,7.62979636]
[1770230667674,7.25805517,2169.0,2167.9,0.00341454]
[1770230667868,0.00439507,2169.2,2167.9,7.6332109]
[1770230668069,0.00439507,2169.2,2168.1,7.62979636]
[1770230668977,0.461,2170.6,2168.8,7.86081636]
[1770230669170,0.461,2170.6,2169.0,8.69240636]
[1770230669372,0.461,2170.6,2169.0,7.86079636]
[1770230669877,7.48877517,2171.7,2169.6,8.92302636]
[1770230670068,1.29236,2171.2,2169.6,7.62979636]
[1770230670273,8.55049517,2171.0,2169.6,7.62979636]
[1770230670469,7.48887517,2170.8,2168.7,8.92358636]
[1770230670668,7.25805517,2170.8,2168.9,7.62979636]
[1770230670874,7.26164422,2170.8,2168.9,7.86564329]
[1770230671072,7.48887517,2170.7,2168.9,7.63463329]
[1770230671374,0.461,2170.6,2168.9,7.63463329]
[1770230671679,7.94989517,2170.6,2168.9,7.63463329]
[1770230672077,1.29304,2170.0,2168.9,0.00483693]
[1770230672271,1.29304,2170.0,2167.9,4.08133953]
[1770230672272,7.48902517,2169.4,2167.9,7.62979636]
[1770230672476,8.32070517,2169.0,2167.5,7.62979636]
[1770230672676,7.48907517,2168.9,2167.0,7.62979636]
[1770230673283,7.49263473,2168.9,2167.0,7.63502192]
[1770230673484,7.48909517,2168.7,2167.0,7.63502192]
[1770230674387,0.00355956,2168.9,2167.2,7.62979636]
[1770230675184,0.00355956,2168.9,2167.4,8.69320636]
[1770230675388,0.00355956,2168.9,2167.6,7.62979636]
[1770230675587,0.00355956,2168.9,2167.6,7.86094636]
[1770230675983,0.00355956,2168.9,2167.8,7.62979636]
[1770230676386,3.232,2170.1,2168.5,7.62979636]
[1770230676689,0.461,2170.3,2169.0,7.62979636]
[1770230677382,0.46622787,2170.3,2169.0,7.63310742]
[1770230677581,7.25805517,2170.2,2169.0,0.00331106]
[1770230677889,7.48896517,2169.9,2169.0,0.00331106]
[1770230678087,0.23096,2169.4,2168.2,7.62979636]
[1770230678390,0.461,2169.3,2168.2,7.62979636]
[1770230678585,8.31960517,2171.2,2169.3,7.62979636]
[1770230678982,1.06185,2170.6,2169.3,7.62979636]
[1770230679291,7.48889517,2170.5,2168.4,7.86085636]
[1770230679589,7.48885517,2171.0,2168.8,7.62979636]
[1770230679889,0.00399937,2170.5,2169.3,7.62979636]
[1770230680288,7.49289454,2170.5,2169.3,7.62979636]
[1770230680484,7.49289454,2170.5,2168.7,7.62979636]
[1770230680689,7.49289454,2170.5,2168.7,7.86082636]
[1770230680989,0.23088,2170.2,2168.7,7.62979636]
[1770230681189,0.69189,2170.1,2168.7,7.62979636]
[1770230681391,7.48895517,2170.0,2168.7,7.62979636]
[1770230682489,7.48896517,2169.9,2168.4,7.63429188]
[1770230682890,0.461,2170.1,2168.4,7.63429188]
[1770230683192,0.461,2170.1,2169.1,7.62979636]
[1770230683392,0.461,2170.1,2169.3,7.62979636]
[1770230683691,0.461,2170.1,2169.2,0.23098]
[1770230683692,0.461,2170.9,2169.5,7.62979636]
[1770230683886,7.71905517,2170.9,2169.5,7.62979636]
[1770230684092,7.25805517,2170.7,2169.1,7.62979636]
[1770230684294,0.23086,2170.4,2169.1,7.62979636]
[1770230684591,0.461,2170.9,2169.1,7.62979636]
[1770230684792,0.46426566,2170.9,2169.3,7.62979636]
[1770230685194,7.72232083,2170.9,2169.3,7.62979636]
[1770230685594,7.72232083,2170.9,2169.5,7.62979636]
[1770230686093,7.72232083,2170.9,2169.6,7.62979636]
[1770230686489,7.95312083,2170.9,2169.6,7.62979636]
[1770230687085,7.48887517,2170.7,2169.2,7.62979636]
[1770230687293,7.48887517,2170.7,2169.4,7.62979636]
[1770230687686,0.2309,2170.0,2169.1,2.72205397]
[1770230687893,0.461,2169.9,2168.7,7.62979636]
[1770230688194,0.461,2169.9,2168.9,7.62979636]
[1770230689391,7.25078454,2168.8,2168.5,1.22934784]
[1770230689689,0.23099,2169.2,2168.0,12.41016902]
[1770230689889,0.461,2169.2,2168.0,1.06312]
[1770230690093,0.461,2169.2,2167.9,1.06314]
[1770230690094,0.461,2169.2,2167.9,0.23112]
[1770230690289,0.461,2169.2,2168.2,0.23108]
[1770230690493,0.461,2169.7,2168.7,0.23103]
[1770230690790,0.461,2169.7,2168.9,12.41016902]
[1770230690991,0.461,2169.7,2168.3,12.41016902]
[1770230691196,0.461,2169.7,2168.2,0.00349969]
[1770230691197,0.69193,2169.7,2168.2,0.00349969]
[1770230691692,0.46485154,2169.7,2168.5,7.62979636]
[1770230691897,0.46485154,2169.7,2169.3,7.62979636]
[1770230692199,3.693,2170.1,2169.3,7.62979636]
[1770230692392,3.693,2170.1,2169.4,20.03996538]
[1770230692587,0.461,2170.1,2169.4,7.62979636]
[1770230692894,0.461,2170.1,2169.7,7.62979636]
[1770230693088,0.461,2170.1,2169.6,12.41016902]
[1770230693089,0.461,2170.5,2170.1,7.62979636]
[1770230693288,0.45104343,2170.5,2170.1,7.62979636]
[1770230693488,0.461,2171.1,2170.2,7.62979636]
[1770230694087,0.461,2172.0,2170.3,7.21325554]
[1770230694290,0.461,2172.0,2170.7,12.41016902]
[1770230694488,7.67184064,2172.7,2171.0,7.21325554]
[1770230695195,8.7380592,2172.7,2171.0,7.21325554]
[1770230695396,7.6772292,2172.7,2171.0,7.21325554]
[1770230695994,14.54263853,2172.7,2171.0,7.21325554]
[1770230696501,7.6772292,2172.7,2171.2,7.21325554]
[1770230696703,7.44123064,2172.4,2170.7,7.21325554]
[1770230696996,7.67187064,2172.4,2170.7,7.21325554]
[1770230697198,7.67188064,2172.3,2170.7,7.21325554]
[1770230697697,8.73338064,2171.5,2170.2,7.21656458]
[1770230697899,0.23079,2171.0,2169.8,7.21325554]
[1770230698099,7.90223064,2171.4,2169.8,7.21325554]
[1770230698294,1.06151,2171.3,2169.9,7.21325554]
[1770230698496,1.06183,2170.7,2169.5,7.21325554]
[1770230698694,0.23085,2170.5,2168.8,7.42958777]
[1770230698897,0.461,2170.4,2168.8,7.43385412]
[1770230699303,0.461,2170.4,2168.9,7.42958777]
[1770230699502,0.461,2170.4,2168.8,0.00426635]
[1770230699503,0.461,2170.4,2169.1,7.42958777]
[1770230699798,0.23089,2170.1,2169.0,12.41016902]
[1770230700003,0.2309,2170.0,2168.8,0.00426635]
[1770230700199,0.23093,2169.8,2168.7,7.42958777]
[1770230700404,3.692,2170.4,2168.8,12.64118902]
[1770230700604,7.135738,2170.3,2168.3,0.23107]
[1770230700805,0.23088,2170.2,2168.3,0.23107]
[1770230701005,7.366628,2170.1,2168.4,12.41016902]
[1770230701204,7.366628,2170.1,2168.4,12.413499]
[1770230701402,7.366628,2170.1,2168.6,12.41016902]
[1770230701600,3.692,2170.4,2168.8,12.41016902]
[1770230701806,3.692,2170.4,2168.4,0.23438998]
[1770230702008,3.692,2170.4,2168.7,12.41016902]
[1770230702307,1.06131,2171.8,2168.7,12.41016902]
[1770230702308,7.596738,2171.3,2169.6,7.42958777]
[1770230702605,7.135738,2170.9,2169.6,7.42958777]
[1770230702805,0.461,2171.3,2169.9,7.42958777]
[1770230702998,0.461,2171.3,2170.0,7.42958777]
[1770230703199,7.60012825,2171.3,2170.0,7.43318355]
[1770230703506,7.135738,2170.5,2169.1,7.42958777]
[1770230703803,8.198078,2169.6,2167.7,7.42958777]
[1770230704108,0.23099,2169.2,2167.7,7.42958777]
[1770230704405,0.23099,2169.2,2167.0,7.42958777]
[1770230704406,1.06278,2168.7,2167.0,7.42958777]
[1770230704701,6.86540933,2167.7,2165.7,7.42958777]
[1770230704907,0.461,2167.6,2165.9,7.42958777]
[1770230705507,0.46460607,2167.6,2165.9,7.43390983]
[1770230705903,7.135738,2167.5,2165.9,7.43390983]
[1770230706501,0.46460607,2167.6,2166.0,7.42958777]
[1770230706900,0.46460607,2167.6,2166.5,7.42958777]
[1770230707100,0.00360607,2167.6,2166.5,7.42958777]
[1770230707306,0.00360607,2167.6,2166.7,7.42958777]
[1770230707504,0.00360607,2167.6,2166.4,0.23128]
[1770230707505,0.00360607,2167.6,2166.9,19.83975679]
[1770230707808,0.461,2167.8,2166.8,19.83975679]
[1770230708001,0.461,2167.8,2166.8,7.42958777]
[1770230708502,7.135738,2167.6,2165.9,7.43390983]
[1770230708701,0.00423281,2167.6,2165.9,7.43390983]
[1770230709101,1.06343,2167.4,2165.9,7.43390983]
[1770230709305,0.23118,2167.3,2165.9,7.43390983]
[1770230709505,0.00423281,2167.6,2165.9,7.43390983]
[1770230709703,0.00423281,2167.6,2166.1,7.59343717]
[1770230710300,1.29873281,2167.6,2166.1,7.59343717]
[1770230710508,0.23539281,2167.6,2166.1,7.59343717]
[1770230711209,0.00423281,2167.6,2166.1,7.59343717]
[1770230712509,0.23116,2167.5,2166.1,7.59343717]
[1770230713211,0.00423281,2167.6,2166.1,7.59343717]
[1770230713608,0.2312,2167.2,2166.1,7.59343717]
[1770230714010,0.00423281,2167.6,2166.1,7.59343717]
[1770230714205,0.23117,2167.5,2166.1,7.59343717]
[1770230714611,0.23121,2167.1,2166.1,7.59343717]
[1770230714911,0.23122,2167.0,2166.1,7.59343717]
[1770230715311,0.23538281,2167.6,2166.1,7.59343717]
[1770230715511,0.23116,2167.5,2166.1,7.59343717]
[1770230716406,0.00423281,2167.6,2166.1,7.59343717]
[1770230716407,0.23121,2167.1,2166.1,7.59343717]
[1770230717408,1.26572153,2167.4,2165.9,7.58230215]
[1770230717409,0.23118,2167.4,2165.9,7.58230215]
[1770230717709,0.00423281,2167.6,2166.1,7.57798009]
[1770230717906,0.00423281,2167.6,2166.4,7.57798009]
[1770230718307,0.00423281,2167.6,2166.7,7.5889282]
[1770230718505,0.23109,2168.2,2166.7,7.8201782]
[1770230718705,0.23111,2168.0,2167.0,7.5889282]
[1770230718911,0.1803753,2168.9,2167.0,7.5889282]
[1770230719214,0.1803753,2168.9,2167.7,7.5889282]
[1770230719215,0.462,2168.9,2167.7,7.5889282]
[1770230719410,0.6968243,2168.9,2167.7,7.59472345]
[1770230719710,0.23107,2168.4,2167.7,7.59472345]
[1770230720208,0.23107,2168.4,2167.3,7.5889282]
[1770230720609,1.06307,2168.1,2166.8,7.61243323]
[1770230720813,4.02905387,2168.5,2166.8,7.61243323]
[1770230720814,0.23113,2167.9,2166.8,7.61243323]
[1770230721014,0.462,2167.8,2166.8,7.61243323]
[1770230721515,0.462,2167.8,2166.8,7.61829119]
[1770230721915,0.462,2168.3,2167.4,7.61243323]
[1770230722212,1.06255,2169.2,2168.0,7.42958777]
[1770230722412,1.06264,2169.0,2168.0,7.42958777]
[1770230722614,0.23107,2168.4,2167.5,0.9227]
[1770230722812,0.23111,2168.0,2167.1,7.42958777]
[1770230723013,0.23115,2167.6,2166.8,0.00585796]
[1770230723210,0.23109,2168.2,2166.8,7.43544573]
[1770230723914,0.2311,2168.1,2166.8,7.43544573]
[1770230724418,0.23118,2167.4,2166.8,0.00585796]
[1770230724614,0.462,2167.3,2165.3,7.34569472]
[1770230724915,0.462,2167.3,2165.6,7.57705472]
[1770230725616,0.4652563,2167.3,2165.6,7.35086812]
[1770230725808,0.23122,2167.0,2165.6,7.35086812]
[1770230726809,0.4652563,2167.3,2165.6,7.58222812]
[1770230727017,0.4652563,2167.3,2165.9,7.35522959]
[1770230727219,0.4652563,2167.3,2165.9,7.58654959]
[1770230727416,0.4652563,2167.3,2165.9,7.35522959]
[1770230727618,0.23121,2167.1,2165.9,7.35522959]
[1770230728019,0.23121,2167.1,2164.7,1.06472]
[1770230728020,1.71249048,2166.4,2164.6,7.35781629]
[1770230728220,3.42818387,2166.3,2164.8,7.35781629]
[1770230728518,0.462,2166.3,2164.8,7.35781629]
[1770230728711,0.462,2166.3,2165.0,7.38267174]
[1770230729112,0.462,2166.3,2165.0,7.38831063]
[1770230729417,1.29532,2166.2,2165.0,7.38831063]
[1770230729713,2.96618387,2165.6,2164.2,7.38267174]
[1770230729917,1.29586,2165.3,2164.2,7.38267174]
[1770230730118,0.69341,2165.2,2163.2,7.38267174]
[1770230730315,4.03086387,2164.9,2163.2,7.38267174]
[1770230730516,0.00409154,2164.9,2163.4,7.42873602]
[1770230730718,0.00409154,2164.9,2163.6,7.42873602]
[1770230730920,0.00409154,2164.9,2163.7,0.14474292]
[1770230731119,0.00409154,2164.9,2163.8,7.42873602]
[1770230731320,1.06421,2165.8,2164.0,7.42669025]
[1770230731514,1.06432,2165.6,2164.0,7.42669025]
[1770230731921,1.29582,2165.4,2164.0,7.42669025]
[1770230732122,0.2314,2165.3,2164.0,7.42669025]
[1770230732319,0.00385595,2165.3,2164.0,7.42669025]
[1770230733219,0.00385595,2165.3,2163.2,0.00353762]
[1770230733220,0.23144,2165.0,2163.6,7.43329785]
[1770230733517,0.462,2164.9,2163.6,7.43329785]
[1770230733718,0.462,2164.9,2163.6,7.66487785]
[1770230734221,0.462,2164.9,2163.6,8.73012785]
[1770230734416,0.462,2165.1,2163.8,7.07471263]
[1770230734620,0.00385595,2165.3,2163.8,7.07471263]
[1770230735318,0.00385595,2165.3,2163.2,1.06900762]
[1770230735319,0.462,2165.6,2164.0,7.07471263]
[1770230735519,0.462,2165.6,2163.7,1.06519]
[1770230735520,3.236,2166.2,2164.8,7.07471263]
[1770230736217,0.462,2166.3,2164.8,7.30615263]
[1770230736419,0.462,2166.3,2164.8,8.3760601]
[1770230736613,0.462,2166.6,2165.0,7.07471263]
[1770230736814,0.462,2166.6,2165.0,8.37068263]
[1770230737018,0.462,2167.0,2165.6,7.07471263]
[1770230737721,0.46785265,2167.0,2165.6,7.07471263]
[1770230738218,3.7,2167.4,2166.2,8.13869263]
[1770230738527,0.462,2167.7,2166.2,8.36998263]
[1770230738820,0.462,2167.7,2166.4,7.07471263]
[1770230739224,0.46764914,2167.7,2166.4,7.08020886]
[1770230739420,4.47583611,2167.6,2166.4,0.00549623]
[1770230739720,0.46764914,2167.7,2166.4,7.08020886]
[1770230739923,0.46764914,2167.7,2166.7,8.13845263]
[1770230740123,0.462,2168.0,2166.7,7.30596263]
[1770230740419,0.462,2168.0,2166.9,7.07471263]
[1770230740727,0.462,2169.0,2167.9,7.07471263]
[1770230740919,7.24534849,2169.0,2167.4,7.07471263]
[1770230741219,5.95168849,2168.9,2167.4,7.07471263]
[1770230741522,5.95170849,2168.8,2167.0,7.81101263]
[1770230742114,7.01444849,2168.8,2167.0,7.81101263]
[1770230742317,0.46778935,2169.0,2167.1,7.30591263]
[1770230742523,0.46778935,2169.0,2167.3,7.30589263]
[1770230742721,0.46778935,2169.0,2167.3,8.36933263]
[1770230743023,0.46778935,2169.0,2167.5,7.07471263]
[1770230743224,0.46778935,2169.0,2167.5,7.30587263]
[1770230744125,0.46778935,2169.0,2167.7,7.07471263]
[1770230744322,0.46778935,2169.0,2167.9,7.30582263]
[1770230744523,0.462,2169.5,2168.3,7.07471263]
[1770230744724,0.462,2170.2,2168.7,7.30574263]
[1770230745225,0.462,2170.2,2168.7,7.07471263]
[1770230745425,0.46756679,2170.2,2168.7,7.07919844]
[1770230745822,0.23089,2170.1,2168.7,7.07919844]
[1770230746025,7.23284607,2170.0,2168.7,7.07919844]
[1770230746327,7.46375607,2169.9,2168.7,7.07919844]
[1770230746528,7.23284607,2169.6,2168.2,7.07471263]
[1770230746729,0.23093,2169.7,2168.2,7.07471263]
[1770230747222,0.23096,2169.4,2168.2,7.07471263]
[1770230747423,7.46380607,2169.4,2168.2,7.07471263]
[1770230747626,0.23099,2169.2,2168.2,0.00459405]
[1770230747929,0.69299,2169.1,2168.2,0.00459405]
[1770230748130,7.23284607,2168.7,2167.4,7.07471263]
[1770230748428,0.23107,2168.4,2167.0,7.81101263]
[1770230748624,7.23284607,2168.9,2167.2,7.07471263]
[1770230748824,1.06284,2168.6,2167.2,7.07471263]
[1770230749022,0.23114,2167.8,2166.2,0.23129]
[1770230749226,0.23114,2167.8,2165.1,1.06453]
[1770230749227,7.23284607,2167.2,2165.2,1.06448]
[1770230749424,3.235,2167.6,2166.0,0.23131]
[1770230749730,7.69484607,2167.7,2166.0,0.23131]
[1770230749731,0.462,2167.7,2166.4,1.06388]
[1770230749930,0.462,2168.0,2166.7,0.23124]
[1770230750528,0.462,2168.0,2166.0,1.0641]
[1770230750726,0.462,2168.0,2166.8,0.1858]
[1770230750926,0.462,2168.0,2166.8,0.42114514]
[1770230751130,0.4669215,2168.0,2166.9,7.07471263]
[1770230752127,7.23284607,2167.8,2166.8,0.18991514]
[1770230752332,0.23113,2167.9,2166.8,0.18991514]
[1770230752532,7.46397607,2167.9,2166.8,0.18991514]
[1770230752724,7.46397607,2167.8,2166.8,0.18991514]
[1770230753527,7.46399607,2167.5,2166.0,7.07471263]
[1770230754432,7.46399607,2167.5,2166.0,7.08004176]
[1770230754629,1.0632,2167.8,2166.0,7.08004176]
[1770230754630,7.60758023,2166.9,2166.0,0.00532913]
[1770230754828,7.60758023,2166.7,2165.2,7.10747901]
[1770230755225,0.462,2166.8,2165.5,7.10747901]
[1770230755425,0.462,2167.7,2166.3,7.10747901]
[1770230755829,0.462,2167.7,2166.5,7.10747901]
[1770230756632,0.462,2167.7,2166.3,0.00472886]
[1770230756633,8.06958023,2167.7,2166.3,0.00472886]
[1770230756935,7.83877023,2167.3,2166.3,0.00472886]
[1770230757132,8.06958023,2167.7,2166.3,7.11220787]
[1770230757730,7.60758023,2167.5,2166.3,7.11220787]
[1770230758036,7.60758023,2167.2,2166.3,0.00472886]
[1770230758332,7.83880023,2167.0,2165.2,7.10747901]
[1770230758634,7.65212262,2166.8,2165.2,7.10747901]
[1770230758835,7.88288262,2166.7,2165.2,7.10747901]
[1770230759035,0.462,2166.7,2165.2,7.33887901]
[1770230759234,0.462,2166.7,2165.4,6.99309698]
[1770230760339,0.462,2167.4,2166.1,6.99309698]
[1770230760541,8.11405262,2167.4,2166.1,6.99309698]
[1770230760737,8.11405262,2167.4,2165.5,6.99309698]
[1770230760738,7.42088262,2167.2,2165.5,6.99309698]
[1770230760933,0.23126,2166.6,2165.5,6.99309698]
[1770230761133,0.23129,2166.3,2165.2,0.00391693]
[1770230761337,0.462,2166.2,2165.2,6.99701391]
[1770230762239,7.42088262,2165.9,2164.4,6.99309698]
[1770230762438,7.42088262,2165.9,2163.6,1.06524]
[1770230762439,7.42088262,2165.7,2163.6,6.99309698]
[1770230762640,7.42088262,2165.5,2163.9,6.99309698]
[1770230762836,0.23137,2165.6,2164.1,6.99309698]
[1770230763038,7.42088262,2165.9,2164.2,0.23151]
[1770230763343,7.42088262,2165.6,2164.2,6.99650586]
[1770230763741,0.23134,2165.9,2164.3,0.2315]
[1770230764043,7.65222262,2165.9,2164.4,6.99309698]
[1770230764343,7.42088262,2165.6,2164.4,6.99309698]
[1770230764544,7.42088262,2166.0,2164.4,6.99309698]
[1770230764739,7.42088262,2166.0,2164.6,6.99309698]
[1770230764943,7.88288262,2166.2,2164.8,6.99309698]
[1770230765242,8.11418262,2166.2,2164.8,6.99309698]
[1770230765640,7.42088262,2166.0,2164.8,6.99309698]
[1770230765839,0.23131,2166.1,2164.8,6.99309698]
[1770230766136,7.42088262,2166.0,2164.8,6.99309698]
[1770230766334,7.42088262,2165.5,2164.2,0.00340888]
[1770230766534,7.42088262,2165.2,2164.2,0.00340888]
[1770230766737,7.88288262,2165.1,2163.7,6.99309698]
[1770230766935,7.88288262,2165.1,2164.1,6.99309698]
[1770230766936,0.462,2165.1,2164.1,6.99309698]
[1770230767539,7.65233262,2164.9,2163.5,6.99309698]
[1770230767739,7.65233262,2164.9,2163.5,6.99831569]
[1770230767941,7.65233262,2164.8,2163.5,6.99831569]
[1770230768240,7.42088262,2164.5,2163.5,0.00521871]
[1770230768545,7.42088262,2164.1,2162.7,6.99309698]
[1770230768846,0.462,2164.0,2162.7,6.99309698]
[1770230769340,7.88288262,2164.0,2162.7,6.99309698]
[1770230769546,7.88288262,2164.0,2162.7,6.9977619]
[1770230770244,0.462,2164.0,2162.7,6.9977619]
[1770230770441,0.462,2164.0,2163.0,6.99309698]
[1770230770646,0.00542672,2164.5,2163.4,6.99309698]
[1770230771943,7.42088262,2166.2,2164.5,6.99309698]
[1770230772242,7.42088262,2166.0,2164.5,6.99309698]
[1770230772447,7.42088262,2166.6,2164.7,7.22455698]
[1770230772643,7.42088262,2166.6,2165.1,6.99309698]
[1770230772842,0.00521678,2166.6,2165.1,8.06144413]
[1770230773042,0.00521678,2166.6,2165.3,6.99309698]
[1770230773448,7.4260994,2166.6,2165.3,6.99309698]
[1770230774545,7.4260994,2166.6,2165.1,0.00381715]
[1770230774546,7.42088262,2166.2,2165.1,0.00381715]
[1770230774745,7.42088262,2166.0,2165.1,0.00381715]
[1770230774945,7.42088262,2166.0,2164.5,6.99309698]
[1770230775141,7.42088262,2165.8,2164.1,6.99309698]
[1770230775345,0.462,2165.7,2164.1,6.99309698]
[1770230775645,7.87899246,2166.5,2164.9,7.22453698]
[1770230775646,0.462,2166.5,2164.9,7.22453698]
[1770230775840,0.462,2166.5,2164.9,6.99803962]
[1770230775841,7.88288262,2166.5,2164.9,6.99803962]
[1770230776040,0.23127,2166.4,2164.9,6.99803962]
[1770230776245,7.42088262,2166.3,2164.9,6.99803962]
[1770230776844,8.48484262,2166.3,2164.9,6.99803962]
[1770230777148,7.42088262,2166.1,2164.9,6.99803962]
[1770230777446,7.88288262,2166.5,2164.9,6.99803962]
[1770230777650,7.42088262,2166.1,2164.9,0.00494264]
[1770230777949,7.42088262,2165.5,2164.1,6.99309698]
[1770230778247,1.0641,2166.0,2164.1,6.99309698]
[1770230778248,0.462,2165.4,2164.1,7.22460698]
[1770230778444,0.462,2165.4,2164.3,6.99309698]
[1770230778652,0.462,2166.1,2164.7,6.99309698]
[1770230778947,0.462,2166.1,2164.7,6.99674229]
[1770230779446,7.88288262,2166.1,2164.7,6.99674229]
[1770230779640,8.11419262,2166.1,2164.7,6.99674229]
[1770230779839,7.65221262,2165.9,2164.7,0.00364531]
[1770230780349,7.65225262,2165.6,2164.7,0.00364531]
[1770230780649,7.42088262,2165.6,2164.7,0.00364531]
[1770230780945,7.42088262,2165.2,2163.5,6.99309698]
[1770230781147,0.462,2165.1,2163.5,7.22468698]
[1770230781549,0.462,2165.1,2163.8,6.99309698]
[1770230781751,0.462,2165.1,2164.1,6.99309698]
[1770230782249,0.462,2165.6,2164.3,6.99309698]
[1770230782550,0.462,2165.6,2164.3,7.22459698]
[1770230783245,0.462,2166.4,2165.0,6.99309698]
[1770230784242,7.36224209,2166.1,2164.6,7.32230949]
[1770230784943,7.36224209,2166.1,2163.9,7.32230949]
[1770230784944,7.13092209,2165.7,2163.9,7.32230949]
[1770230785150,7.13092209,2165.7,2164.1,7.32230949]
[1770230785449,7.13092209,2165.3,2164.1,7.32230949]
[1770230785745,1.06442,2165.4,2162.9,4.05221595]
[1770230785746,7.13092209,2164.8,2163.7,7.32230949]
[1770230785945,7.13616244,2164.8,2163.7,7.32230949]
[1770230786146,7.13616244,2164.8,2163.0,7.32230949]
[1770230786342,7.13616244,2164.8,2162.5,0.02297272]
[1770230786343,8.19591209,2164.2,2162.5,0.02297272]
[1770230786548,7.13092209,2163.8,2162.5,0.02297272]
[1770230786747,7.13092209,2163.8,2162.5,7.34528221]
[1770230787053,7.59292209,2164.1,2162.7,7.32230949]
[1770230787549,7.59292209,2164.1,2162.5,0.02297272]
[1770230787550,7.36246209,2164.0,2162.5,0.02297272]
[1770230787745,7.13092209,2163.8,2162.5,0.02297272]
[1770230787946,7.36248209,2163.8,2162.5,0.02297272]
[1770230788150,7.36248209,2163.8,2162.5,7.34528221]
[1770230788447,7.13092209,2163.8,2162.5,7.34528221]
[1770230788649,0.462,2164.1,2162.5,7.34528221]
[1770230788949,0.462,2164.1,2162.7,7.55398949]
[1770230789350,0.462,2164.1,2162.9,7.32230949]
[1770230789748,0.462,2164.1,2163.2,7.32230949]
[1770230789944,0.462,2164.6,2163.2,7.32230949]
[1770230790655,7.13092209,2164.4,2162.7,7.32230949]
[1770230790852,7.13092209,2164.2,2162.8,7.32230949]
[1770230791353,7.36244209,2164.2,2162.8,7.32230949]
[1770230791647,7.13092209,2164.4,2162.8,7.32230949]
[1770230791848,7.13092209,2164.4,2163.0,7.32230949]
[1770230792044,0.462,2164.6,2163.2,7.32230949]
[1770230792247,0.462,2164.6,2163.4,7.32230949]
[1770230792548,7.59292209,2164.6,2163.4,7.32230949]
[1770230792749,7.13092209,2164.3,2162.8,7.32230949]
[1770230793353,7.36243209,2164.3,2162.8,7.32230949]
[1770230793549,6.81511246,2164.5,2162.8,7.32230949]
[1770230793550,7.13092209,2164.1,2162.8,7.32230949]
[1770230793755,7.36245209,2164.1,2162.8,7.32230949]
[1770230793955,7.13092209,2163.8,2162.5,0.02297272]
[1770230794253,7.13092209,2164.2,2162.5,7.57697221]
[1770230794553,7.13092209,2164.2,2162.8,7.32230949]
[1770230795157,7.36247209,2163.9,2162.5,0.02297272]
[1770230795357,7.13092209,2163.7,2162.5,0.02297272]
[1770230795557,7.59292209,2163.6,2162.5,0.02297272]
[1770230795857,0.462,2163.6,2162.5,7.34528221]
[1770230796753,7.36253209,2163.2,2161.7,7.55408949]
[1770230796948,7.36801682,2163.2,2161.7,7.32230949]
[1770230797158,7.13092209,2163.0,2161.7,7.32230949]
[1770230797452,7.36259209,2162.8,2161.4,0.00501788]
[1770230797657,7.13092209,2162.5,2161.0,1.06656]
[1770230797857,0.462,2162.4,2160.8,0.23188]
[1770230798057,0.462,2162.4,2160.9,0.23186]
[1770230798557,0.462,2162.4,2160.6,1.06674]
[1770230798558,0.462,2162.4,2161.1,0.23184]
[1770230798757,0.462,2162.4,2160.8,0.23188]
[1770230798959,7.59292209,2162.4,2160.8,0.23188]
[1770230799656,7.13092209,2162.0,2160.4,7.32230949]
[1770230800458,1.06594,2162.3,2160.4,7.32230949]
[1770230800459,7.13092209,2161.7,2160.4,7.32230949]
[1770230800761,7.13092209,2162.1,2160.7,7.32230949]
[1770230801062,7.36268209,2161.9,2160.2,7.32230949]
[1770230801263,7.36268209,2161.9,2160.4,7.32230949]
[1770230801658,7.13092209,2161.9,2160.4,7.32230949]
[1770230801855,7.13092209,2161.9,2159.7,1.06719]
[1770230801856,0.23177,2161.8,2159.6,1.06725]
[1770230802155,1.06604,2162.1,2160.0,7.32230949]
[1770230802156,7.36270209,2161.7,2160.0,7.32230949]
[1770230802359,1.06604,2162.1,2160.0,7.32230949]
[1770230802360,7.13092209,2161.5,2160.0,7.32230949]
[1770230802561,7.59392209,2161.4,2160.0,7.32230949]
[1770230802761,7.82574209,2161.4,2159.6,7.32230949]
[1770230803152,7.59392209,2161.4,2159.8,0.23198]
[1770230803354,7.59392209,2161.4,2159.9,7.32230949]
[1770230803557,7.59392209,2161.4,2159.8,0.23198]
[1770230803558,7.59392209,2161.4,2160.1,7.32230949]
[1770230803956,7.59392209,2161.4,2159.6,7.32230949]
[1770230804162,7.59392209,2161.4,2159.9,7.55427949]
[1770230804757,0.463,2161.4,2160.2,7.32230949]
[1770230804956,7.59392209,2161.4,2160.2,7.32230949]
[1770230805157,7.82574209,2161.4,2159.7,7.32230949]
[1770230806161,7.82574209,2161.4,2159.7,7.55430949]
[1770230806668,7.13092209,2161.2,2159.7,7.55430949]
[1770230807165,7.36276209,2161.2,2159.7,7.32230949]
[1770230807460,0.463,2161.4,2159.7,7.32230949]
[1770230807666,0.463,2161.4,2160.1,7.32230949]
[1770230808065,7.59392209,2161.4,2160.1,7.32230949]
[1770230809562,0.463,2161.4,2160.4,7.55422949]
[1770230809759,0.463,2161.4,2160.7,7.32230949]
[1770230809967,7.36265209,2162.2,2160.7,7.32230949]
[1770230810168,7.36265209,2162.2,2160.9,7.32230949]
[1770230810561,0.463,2162.3,2160.9,7.55417949]
[1770230810867,0.46671347,2162.3,2160.9,7.5585429]
[1770230811170,7.13092209,2161.7,2160.9,0.00436341]
[1770230811371,7.36265209,2162.2,2160.9,0.00436341]
[1770230811571,7.13092209,2162.2,2160.9,7.3266729]
[1770230811761,0.46671347,2162.3,2161.4,0.23181]
[1770230812069,0.463,2162.9,2161.5,7.55410949]
[1770230812266,0.463,2162.9,2161.9,0.23176]
[1770230812461,0.463,2162.9,2162.1,7.32230949]
[1770230812665,0.463,2163.5,2162.1,7.32230949]
[1770230812862,0.463,2163.5,2162.5,7.32230949]
[1770230813266,3.244,2164.3,2163.1,0.23162]
[1770230813472,0.463,2164.4,2163.2,7.55392949]
[1770230813662,0.463,2164.4,2163.2,7.95412949]
[1770230813864,0.463,2165.1,2163.8,7.48582968]